bitfinex/quotes_SOLUSD_20250721
["timestamp","ask_amount","ask_price","bid_price","bid_amount"]
[1753125270843,6.59745244,195.36,195.32,26.0]
[1753125271045,7.25745244,195.36,195.32,26.0]
[1753125271353,6.59745244,195.37,195.32,31.11971588]
[1753125271563,7.28745244,195.37,195.32,31.11971588]
[1753125272472,7.28745244,195.36,195.34,26.0]
[1753125272643,5.11826099,195.38,195.34,26.0]
[1753125272644,7.28745244,195.35,195.34,26.0]
[1753125272846,6.59745244,195.36,195.34,26.0]
[1753125273057,6.59745244,195.37,195.34,26.0]
[1753125273566,7.28745244,195.36,195.34,26.0]
[1753125274752,6.59745244,195.35,195.34,26.0]
[1753125274952,7.28745244,195.35,195.34,26.0]
[1753125275451,5.17853043,195.37,195.34,26.0]
[1753125275659,7.28745244,195.36,195.34,26.0]
[1753125276467,0.69,195.35,195.34,26.0]
[1753125276774,6.59745244,195.36,195.34,26.0]
[1753125276973,7.28745244,195.36,195.34,26.0]
[1753125278170,6.59745244,195.36,195.34,26.0]
[1753125278463,7.28745244,195.35,195.27,12.37853129]
[1753125278769,6.59745244,195.33,195.3,26.0]
[1753125278973,7.28745244,195.34,195.31,26.0]
[1753125279969,0.69,195.33,195.31,26.0]
[1753125280149,7.28745244,195.33,195.31,26.0]
[1753125281354,16.78468397,195.31,195.24,2.2261]
[1753125281660,6.59745244,195.26,195.21,6.7218]
[1753125281971,6.59745244,195.24,195.19,1.5249]
[1753125282175,7.28745244,195.24,195.19,1.5249]
[1753125282356,7.28745244,195.24,195.18,44.27745244]
[1753125282357,6.59745244,195.22,195.18,37.02]
[1753125282560,16.78468397,195.27,195.17,6.0618]
[1753125282903,6.59745244,195.24,195.19,33.25745244]
[1753125283076,6.59745244,195.24,195.19,26.66]
[1753125283282,7.28745244,195.23,195.19,26.0]
[1753125283657,6.59745244,195.23,195.19,0.66]
[1753125283975,6.59745244,195.24,195.21,26.0]
[1753125284272,5.12133315,195.27,195.21,26.0]
[1753125284273,5.12115193,195.27,195.21,26.0]
[1753125284452,6.59745244,195.23,195.21,26.0]
[1753125284854,0.69,195.23,195.21,26.0]
[1753125285054,16.78468397,195.26,195.21,26.0]
[1753125285271,6.59745244,195.24,195.21,26.0]
[1753125285579,6.59745244,195.23,195.21,26.0]
[1753125285879,6.59745244,195.22,195.21,26.0]
[1753125286169,7.28745244,195.22,195.2,26.0]
[1753125286477,6.59745244,195.21,195.2,26.0]
[1753125286776,7.28745244,195.21,195.2,26.0]
[1753125286955,0.69,195.23,195.2,26.0]
[1753125287159,6.59745244,195.22,195.2,26.0]
[1753125287777,7.28745244,195.22,195.2,26.0]
[1753125288674,112.57213641,195.21,195.14,1.5249]
[1753125288876,6.59745244,195.18,195.12,6.0618]
[1753125289078,6.59745244,195.16,195.11,42.145246]
[1753125289374,7.28745244,195.15,195.11,37.02]
[1753125289957,6.59745244,195.14,195.11,37.02]
[1753125290411,0.69,195.13,195.11,37.02]
[1753125290554,7.28745244,195.13,195.11,37.02]
[1753125290754,7.28745244,195.13,195.1,26.0]
[1753125290952,7.28745244,195.13,195.11,26.0]
[1753125291564,6.59745244,195.13,195.12,26.0]
[1753125292071,88.5,195.15,195.12,26.66]
[1753125292269,192.52422441,195.2,195.12,26.66]
[1753125292270,125.52,195.2,195.13,6.59745244]
[1753125292466,6.59745244,195.19,195.13,33.25745244]
[1753125292666,88.5,195.2,195.17,26.0]
[1753125292985,88.5,195.21,195.18,0.66]
[1753125293274,1.5438,195.28,195.17,6.59745244]
[1753125293275,6.59745244,195.26,195.19,26.66]
[1753125293480,95.09745244,195.27,195.21,6.59745244]
[1753125293778,95.09745244,195.27,195.22,31.12242598]
[1753125293973,95.09745244,195.27,195.22,31.78242598]
[1753125294391,0.69,195.26,195.19,37.02]
[1753125294570,6.59745244,195.25,195.22,26.0]
[1753125295195,10.57447294,195.25,195.22,26.0]
[1753125295401,11.26447294,195.25,195.22,26.0]
[1753125296087,0.69,195.25,195.23,26.0]
[1753125296879,0.75,195.29,195.23,26.66]
[1753125297067,0.75,195.29,195.22,15.69681986]
[1753125297068,10.57447294,195.28,195.24,26.0]
[1753125297375,0.69,195.27,195.24,26.0]
[1753125297689,10.63447294,195.29,195.24,26.66]
[1753125298199,10.63447294,195.29,195.25,0.66]
[1753125298567,11.32447294,195.29,195.24,26.0]
[1753125298771,11.26447294,195.28,195.24,26.0]
[1753125298987,5.18076403,195.29,195.24,26.0]
[1753125298988,10.57447294,195.27,195.24,26.0]
[1753125299194,10.57447294,195.28,195.24,26.0]
[1753125299977,11.26447294,195.28,195.24,26.0]
[1753125300292,10.57447294,195.26,195.25,26.0]
[1753125300478,10.57447294,195.26,195.23,37.02]
[1753125300479,11.26447294,195.26,195.23,37.02]
[1753125300675,10.57447294,195.25,195.23,37.02]
[1753125300990,88.5,195.27,195.24,26.0]
[1753125301187,99.07447294,195.27,195.24,26.0]
[1753125301977,88.5,195.27,195.24,31.12189252]
[1753125302184,88.5,195.27,195.24,26.0]
[1753125302401,88.5,195.27,195.24,26.68]
[1753125302994,88.5,195.27,195.24,37.68]
[1753125303201,88.5,195.27,195.24,37.0]
[1753125305297,88.5,195.27,195.24,37.68]
[1753125306797,88.5,195.27,195.24,37.0]
[1753125308103,88.5,195.27,195.24,42.80175983]
[1753125308495,10.63447294,195.29,195.25,0.68]
[1753125309002,0.06,195.29,195.25,0.68]
[1753125310000,0.06,195.29,195.28,10.57447294]
[1753125310190,0.06,195.37,195.31,26.0]
[1753125310392,0.06,195.37,195.35,36.57447294]
[1753125310915,0.06,195.37,195.36,26.0]
[1753125312409,0.06,195.37,195.31,5.1198337]
[1753125312589,0.06,195.37,195.35,26.0]
[1753125313212,0.06,195.37,195.36,10.57447294]
[1753125313620,0.06,195.37,195.35,36.57447294]
[1753125313805,0.06,195.37,195.36,26.0]
[1753125315211,0.06,195.37,195.35,36.57447294]
[1753125316589,0.66,195.36,195.35,26.0]
[1753125317193,44.24268619,195.36,195.28,6.60268619]
[1753125317411,6.60268619,195.34,195.29,6.60268619]
[1753125317611,0.66,195.33,195.29,32.60268619]
[1753125317813,0.66,195.33,195.29,26.0]
[1753125318005,0.66,195.33,195.28,44.0947714]
[1753125318208,0.66,195.33,195.31,26.0]
[1753125318521,0.66,195.33,195.29,6.60268619]
[1753125318822,0.66,195.33,195.31,26.0]
[1753125319715,95.76268619,195.32,195.21,6.5227]
[1753125319917,6.60268619,195.28,195.25,26.0]
[1753125320106,7.26268619,195.28,195.25,26.0]
[1753125320506,6.60268619,195.28,195.25,26.0]
[1753125320910,6.60268619,195.28,195.25,62.96]
[1753125321110,6.60268619,195.29,195.25,68.76161437]
[1753125321621,6.60268619,195.29,195.25,62.96]
[1753125321830,6.60268619,195.28,195.25,62.96]
[1753125322203,6.60268619,195.29,195.25,62.96]
[1753125323028,7.26268619,195.28,195.25,62.96]
[1753125323326,6.60268619,195.3,195.25,68.0816324]
[1753125323628,100.22253251,195.32,195.26,7.28268619]
[1753125324200,6.60268619,195.31,195.26,7.28268619]
[1753125324402,6.60268619,195.3,195.26,0.68]
[1753125324801,7.26268619,195.3,195.25,62.96]
[1753125325620,6.60268619,195.3,195.25,63.64]
[1753125326520,94.27981383,195.32,195.26,0.68]
[1753125326740,6.60268619,195.27,195.24,0.03]
[1753125327036,6.60268619,195.26,195.24,0.03]
[1753125327224,105.94468397,195.31,195.24,0.03]
[1753125327533,6.60268619,195.27,195.24,0.03]
[1753125328202,0.66,195.34,195.28,26.0]
[1753125328403,6.60268619,195.32,195.28,26.0]
[1753125328603,0.66,195.34,195.28,26.68]
[1753125328818,6.60268619,195.33,195.28,26.68]
[1753125329113,0.06,195.36,195.35,26.0]
[1753125331308,0.06,195.37,195.35,49.12124516]
[1753125331506,0.06,195.41,195.4,10.55892631]
[1753125331730,0.06,195.41,195.4,48.03069703]
[1753125331927,0.06,195.41,195.4,38.14177072]
[1753125332131,0.06,195.41,195.4,48.70069703]
[1753125332335,0.06,195.41,195.4,53.81840429]
[1753125332508,0.06,195.41,195.4,70.60308826]
[1753125333028,0.06,195.41,195.4,1.18177072]
[1753125333229,0.06,195.41,195.4,0.51177072]
[1753125333527,11.33892631,195.41,195.35,43.2214]
[1753125333720,10.55892631,195.39,195.38,26.0]
[1753125333925,11.27892631,195.39,195.35,36.94]
[1753125334135,10.55892631,195.37,195.35,62.94]
[1753125334315,10.55892631,195.4,195.38,26.0]
[1753125334727,5.17747882,195.41,195.38,26.0]
[1753125334913,10.55892631,195.4,195.38,26.0]
[1753125336431,0.06,195.41,195.38,26.0]
[1753125336616,10.55892631,195.4,195.38,26.0]
[1753125336817,10.55892631,195.4,195.38,36.94]
[1753125338632,15.67665225,195.4,195.38,36.94]
[1753125339339,10.55892631,195.4,195.38,36.94]
[1753125339631,10.61892631,195.41,195.38,36.94]
[1753125339841,10.55892631,195.4,195.38,36.94]
[1753125340736,0.06,195.41,195.38,36.94]
[1753125340924,10.61892631,195.41,195.38,36.94]
[1753125341134,10.55892631,195.4,195.38,36.94]
[1753125341633,10.55892631,195.39,195.38,36.94]
[1753125341820,11.27892631,195.39,195.32,1.6347]
[1753125342139,11.27892631,195.39,195.3,17.21442631]
[1753125342140,10.55892631,195.34,195.3,6.6555]
[1753125342333,10.55892631,195.34,195.33,26.0]
[1753125342535,10.55892631,195.35,195.34,26.0]
[1753125342740,99.05892631,195.38,195.35,26.0]
[1753125342960,88.5,195.38,195.34,36.92]
[1753125343118,88.5,195.38,195.34,62.92]
[1753125343437,88.5,195.38,195.37,26.0]
[1753125344728,88.5,195.38,195.37,36.92]
[1753125344944,0.06,195.41,195.4,26.0]
[1753125345241,0.06,195.41,195.4,74.14892631]
[1753125345818,0.06,195.41,195.4,80.69492631]
[1753125346025,0.06,195.41,195.4,70.136]
[1753125346224,0.06,195.41,195.4,80.69492631]
[1753125346630,0.06,195.41,195.4,85.81263357]
[1753125350127,0.06,195.41,195.4,75.25370726]
[1753125350337,0.06,195.41,195.4,85.81263357]
[1753125352032,0.06,195.43,195.41,16.78468397]
[1753125352236,0.06,195.43,195.42,47.97064466]
[1753125352543,0.06,195.43,195.42,48.64064466]
[1753125354039,0.06,195.43,195.42,42.52890185]
[1753125354349,0.06,195.43,195.42,53.08782816]
[1753125356150,0.06,195.43,195.42,53.75782816]
[1753125357982,0.06,195.43,195.42,53.08782816]
[1753125358132,0.06,195.43,195.42,53.75782816]
[1753125358456,0.06,195.44,195.43,16.78468397]
[1753125358644,0.72,195.54,195.5,10.55892631]
[1753125358841,15.67254265,195.56,195.51,36.88]
[1753125359170,0.72,195.53,195.51,36.88]
[1753125359339,0.72,195.57,195.52,10.55892631]
[1753125359531,0.72,195.56,195.53,36.88]
[1753125359840,0.72,195.56,195.49,0.51153511]
[1753125359841,16.39281049,195.55,195.51,26.0]
[1753125360039,10.55892631,195.54,195.52,36.88]
[1753125360341,11.27892631,195.53,195.46,1.5856]
[1753125360532,11.27892631,195.53,195.33,0.03]
[1753125360533,0.06,195.47,195.39,5.11795927]
[1753125360735,0.06,195.47,195.35,0.51190171]
[1753125360736,10.55892631,195.43,195.35,1.5856]
[1753125360933,10.55892631,195.39,195.33,0.03]
[1753125361242,0.72,195.38,195.34,36.88]
[1753125361438,10.55892631,195.36,195.34,36.88]
[1753125361662,11.25892631,195.35,195.34,36.88]
[1753125361960,11.25892631,195.35,195.33,0.03]
[1753125362138,0.7,195.34,195.33,0.03]
[1753125363340,11.25892631,195.34,195.33,0.03]
[1753125363547,0.7,195.34,195.33,0.03]
[1753125364236,10.55892631,195.36,195.33,0.03]
[1753125364439,0.7,195.37,195.33,36.91]
[1753125364634,0.7,195.4,195.34,10.55892631]
[1753125364862,0.7,195.4,195.36,36.55892631]
[1753125365067,11.25892631,195.4,195.36,36.88]
[1753125365275,0.7,195.39,195.36,36.88]
[1753125365958,0.7,195.38,195.36,36.88]
[1753125366652,0.06,195.41,195.36,36.88]
[1753125366868,0.7,195.4,195.36,36.88]
[1753125367042,0.7,195.39,195.36,36.88]
[1753125367360,10.61892631,195.41,195.36,41.99866639]
[1753125367667,0.76,195.41,195.36,52.5575927]
[1753125368181,0.06,195.41,195.39,26.0]
[1753125368366,0.06,195.41,195.39,62.88]
[1753125369046,0.76,195.41,195.39,62.88]
[1753125369751,11.25892631,195.4,195.37,36.88]
[1753125370066,11.25892631,195.4,195.35,5.11897279]
[1753125370067,11.25892631,195.39,195.35,62.88]
[1753125370244,10.55892631,195.37,195.35,36.88]
[1753125370443,5.1180367,195.39,195.34,0.03]
[1753125370444,11.25892631,195.36,195.34,0.03]
[1753125370952,0.7,195.35,195.34,0.03]
[1753125372462,10.55892631,195.37,195.34,0.03]
[1753125372863,10.55892631,195.37,195.36,26.0]
[1753125373040,11.25892631,195.37,195.36,26.0]
[1753125373647,16.37741942,195.37,195.36,26.0]
[1753125375382,11.25892631,195.37,195.36,26.0]
[1753125375871,16.37741942,195.37,195.36,26.0]
[1753125376045,13.87741942,195.37,195.36,26.0]
[1753125376240,16.37741942,195.37,195.34,0.03]
[1753125376455,0.7,195.36,195.34,0.03]
[1753125377472,0.7,195.39,195.34,0.03]
[1753125377774,0.7,195.39,195.34,10.58892631]
[1753125377961,0.7,195.39,195.35,36.88]
[1753125378149,0.06,195.41,195.38,26.0]
[1753125378352,0.06,195.41,195.38,73.43892631]
[1753125378552,0.06,195.41,195.39,10.55892631]
[1753125378972,0.06,195.41,195.4,36.55892631]
[1753125379180,0.06,195.41,195.4,37.25892631]
[1753125380281,0.06,195.41,195.4,42.37663357]
[1753125380570,0.06,195.41,195.4,79.25663357]
[1753125381852,0.06,195.41,195.4,31.11770726]
[1753125382050,0.06,195.41,195.4,67.99770726]
[1753125382251,0.06,195.41,195.4,78.55663357]
[1753125382752,0.06,195.41,195.4,67.99770726]
[1753125382973,0.06,195.41,195.4,78.55663357]
[1753125384263,0.06,195.41,195.4,62.88]
[1753125384685,0.06,195.41,195.4,67.99770726]
[1753125385772,0.06,195.41,195.4,36.88]
[1753125385972,0.06,195.41,195.4,62.88]
[1753125387880,0.76,195.41,195.4,26.0]
[1753125388261,0.06,195.41,195.39,36.86]
[1753125388459,0.06,195.41,195.4,16.18840429]
[1753125388683,0.06,195.41,195.4,53.04840429]
[1753125389157,0.06,195.41,195.4,52.53663357]
[1753125389763,0.06,195.41,195.4,53.23663357]
[1753125390265,0.06,195.41,195.4,52.53663357]
[1753125390982,0.06,195.41,195.4,41.97770726]
[1753125391187,0.06,195.41,195.4,52.53663357]
[1753125392173,0.06,195.41,195.4,41.97770726]
[1753125392366,0.06,195.41,195.4,5.11770726]
[1753125392585,0.06,195.41,195.4,41.97770726]
[1753125394066,0.06,195.41,195.4,52.53663357]
[1753125394468,0.06,195.41,195.4,41.97770726]
[1753125395269,0.74,195.41,195.4,36.86]
[1753125395536,0.74,195.41,195.36,12.79655269]
[1753125395537,7.33594452,195.41,195.34,0.03]
[1753125395784,6.59594452,195.35,195.34,0.03]
[1753125396188,0.68,195.38,195.34,6.62594452]
[1753125396384,88.5,195.39,195.35,36.86]
[1753125396581,88.5,195.39,195.35,43.45594452]
[1753125396892,89.18,195.39,195.36,5.11875511]
[1753125397196,7.27594452,195.38,195.35,36.86]
[1753125397378,6.59594452,195.38,195.34,62.89]
[1753125397568,0.68,195.37,195.36,26.0]
[1753125397770,88.5,195.39,195.36,62.86]
[1753125398274,7.27594452,195.39,195.36,26.0]
[1753125398690,0.68,195.39,195.36,31.11850612]
[1753125399410,10.55825461,195.4,195.36,31.11850612]
[1753125399611,10.55825461,195.4,195.39,26.0]
[1753125399785,0.68,195.4,195.39,26.0]
[1753125401117,10.61825461,195.41,195.4,21.02100048]
[1753125401885,15.73569998,195.41,195.4,21.02100048]
[1753125402111,0.06,195.41,195.4,21.02100048]
[1753125402612,10.61825461,195.41,195.4,21.02100048]
[1753125403109,11.29825461,195.41,195.4,21.02100048]
[1753125403314,0.06,195.41,195.4,21.02100048]
[1753125403495,0.06,195.41,195.4,26.13870774]
[1753125403692,0.06,195.41,195.4,62.99870774]
[1753125404219,0.06,195.41,195.4,63.71870774]
[1753125404597,0.06,195.41,195.4,74.27696235]
[1753125406019,0.06,195.41,195.4,63.71870774]
[1753125406321,0.06,195.41,195.4,74.27696235]
[1753125406694,0.06,195.41,195.4,63.71870774]
[1753125406906,0.06,195.41,195.4,74.27696235]
[1753125408097,0.06,195.41,195.4,26.13870774]
[1753125408415,0.06,195.41,195.4,62.99870774]
[1753125409426,0.06,195.41,195.4,73.55696235]
[1753125409613,0.06,195.45,195.43,26.0]
[1753125409814,0.06,195.45,195.44,36.84]
[1753125410014,0.74,195.45,195.44,36.84]
[1753125410710,0.74,195.45,195.43,36.84]
[1753125410905,11.23825461,195.44,195.4,21.02100048]
[1753125411119,10.55825461,195.42,195.4,21.02100048]
[1753125411316,0.68,195.41,195.4,21.02100048]
[1753125413100,11.23825461,195.41,195.4,21.02100048]
[1753125415444,16.35569998,195.41,195.4,21.02100048]
[1753125415736,10.55825461,195.43,195.4,21.02100048]
[1753125415953,0.68,195.42,195.4,21.02100048]
[1753125416742,11.23825461,195.42,195.4,21.02100048]
[1753125416944,11.23825461,195.41,195.4,21.02100048]
[1753125419843,16.35569998,195.41,195.4,21.02100048]
[1753125420007,33.14038395,195.41,195.4,21.02100048]
[1753125420628,11.23825461,195.41,195.4,21.02100048]
[1753125421035,16.35569998,195.41,195.4,21.02100048]
[1753125421214,7.27933978,195.41,195.4,21.02100048]
[1753125421416,36.84,195.42,195.4,21.02100048]
[1753125421417,6.59933978,195.42,195.4,21.02100048]
[1753125421932,5.7866797,195.44,195.4,21.02100048]
[1753125421933,6.59933978,195.41,195.4,21.02100048]
[1753125422135,7.26933978,195.41,195.4,21.02100048]
[1753125423012,60.87402375,195.41,195.4,21.02100048]
[1753125423230,65.99146912,195.41,195.4,21.02100048]
[1753125423614,49.20678515,195.41,195.4,21.02100048]
[1753125424239,44.08933978,195.41,195.4,21.02100048]
[1753125425109,49.20678515,195.41,195.4,21.02100048]
[1753125426937,44.08933978,195.41,195.4,21.02100048]
[1753125427109,160.65137434,195.45,195.4,21.02100048]
[1753125427110,0.06,195.45,195.43,26.0]
[1753125427305,0.06,195.45,195.44,26.0]
[1753125427913,6.65933978,195.45,195.4,21.02100048]
[1753125428108,6.59933978,195.41,195.4,21.02100048]
[1753125428312,7.26933978,195.41,195.4,21.02100048]
[1753125429310,12.38678515,195.41,195.4,21.02100048]
[1753125430236,35.7708089,195.41,195.4,21.02100048]
[1753125430439,22.57212934,195.41,195.4,21.02100048]
[1753125430629,72.5908089,195.41,195.4,21.02100048]
[1753125430837,173.88442232,195.41,195.36,0.03]
[1753125431041,6.59933978,195.37,195.36,0.03]
[1753125431335,65.32251686,195.37,195.36,0.03]
[1753125431517,59.39317708,195.37,195.36,0.03]
[1753125431711,65.99251686,195.37,195.36,0.03]
[1753125432618,70.09508123,195.37,195.36,0.03]
[1753125433241,74.06221678,195.37,195.36,0.03]
[1753125433446,69.95965241,195.37,195.36,0.03]
[1753125434521,82.04772774,195.37,195.36,0.03]
[1753125434948,86.13171606,195.37,195.36,0.03]
[1753125437038,75.56524073,195.37,195.36,0.03]
[1753125437422,71.48125241,195.37,195.36,0.03]
[1753125437845,75.54726938,195.37,195.36,0.03]
[1753125438024,86.11374471,195.37,195.36,0.03]
[1753125438226,16.78468397,195.34,195.3,0.03]
[1753125438427,10.56647533,195.31,195.3,0.03]
[1753125438640,47.38647533,195.31,195.3,0.03]
[1753125439327,10.56647533,195.33,195.3,0.71]
[1753125439652,47.38647533,195.33,195.3,0.71]
[1753125439948,10.56647533,195.31,195.3,0.03]
[1753125441140,10.56647533,195.32,195.3,0.71]
[1753125441336,36.82,195.33,195.3,0.71]
[1753125441536,10.56647533,195.32,195.3,0.71]
[1753125442328,10.56647533,195.31,195.3,0.03]
[1753125442940,10.56647533,195.32,195.3,0.03]
[1753125443542,10.56647533,195.32,195.3,0.71]
[1753125443849,12.79452341,195.4,195.3,0.71]
[1753125443850,10.56647533,195.38,195.31,37.24647533]
[1753125444027,36.82,195.37,195.32,0.68]
[1753125444348,36.82,195.37,195.33,5.11954128]
[1753125444738,36.82,195.37,195.34,0.68]
[1753125445042,39.42736905,195.37,195.34,0.68]
[1753125445630,49.99384438,195.37,195.34,0.68]
[1753125445948,49.99384438,195.37,195.31,42.92087533]
[1753125446134,49.99384438,195.37,195.32,0.68]
[1753125446330,49.99384438,195.37,195.33,0.68]
[1753125446532,49.99384438,195.37,195.34,0.68]
[1753125446854,88.5,195.41,195.34,26.0]
[1753125447068,10.62647533,195.42,195.36,10.56647533]
[1753125447240,0.06,195.42,195.4,26.0]
[1753125447429,0.06,195.42,195.41,0.68]
[1753125447958,11.29647533,195.42,195.38,26.0]
[1753125448132,10.56647533,195.4,195.38,26.0]
[1753125449540,10.56647533,195.39,195.38,26.0]
[1753125449742,10.56647533,195.39,195.37,26.0]
[1753125449945,10.56647533,195.4,195.37,26.0]
[1753125451047,10.56647533,195.39,195.37,26.0]
[1753125451762,0.69,195.38,195.37,26.0]
[1753125451934,10.56647533,195.38,195.37,26.0]
[1753125452132,10.56647533,195.38,195.33,1.5919]
[1753125452332,10.56647533,195.38,195.32,36.82]
[1753125452333,10.56647533,195.36,195.35,26.0]
[1753125453537,10.56647533,195.37,195.35,26.0]
[1753125454355,3.81215293,195.37,195.35,26.0]
[1753125454745,135.86647533,195.36,195.33,0.03]
[1753125454953,10.56647533,195.34,195.33,0.03]
[1753125455162,137.02354216,195.34,195.33,0.03]
[1753125455455,137.71354216,195.34,195.33,0.03]
[1753125455643,154.49822613,195.34,195.33,0.03]
[1753125457342,167.29642414,195.34,195.3,0.03]
[1753125457568,23.38894693,195.31,195.3,0.03]
[1753125457867,6.60426296,195.31,195.3,0.03]
[1753125458038,43.40426296,195.31,195.3,0.03]
[1753125458655,44.09426296,195.31,195.3,0.03]
[1753125459047,60.87894693,195.31,195.3,0.03]
[1753125459261,65.99901246,195.31,195.3,0.03]
[1753125459561,72.60327542,195.31,195.3,0.03]
[1753125460661,29.19901246,195.31,195.3,0.03]
[1753125460864,65.30901246,195.31,195.3,0.03]
[1753125461042,60.18894693,195.31,195.3,0.03]
[1753125461366,65.30901246,195.31,195.3,0.03]
[1753125461540,65.99901246,195.31,195.3,0.03]
[1753125463255,16.78468397,195.3,195.29,0.03]
[1753125463459,30.68320989,195.3,195.29,0.03]
[1753125463760,30.68320989,195.3,195.26,0.03]
[1753125463967,6.60426296,195.27,195.26,0.03]
[1753125464149,43.40426296,195.27,195.26,0.03]
[1753125464351,44.09426296,195.27,195.26,0.03]
[1753125465444,49.21537731,195.27,195.26,0.03]
[1753125466852,71.36931872,195.27,195.26,0.03]
[1753125467058,70.18152199,195.27,195.26,0.03]
[1753125467749,66.00006128,195.27,195.26,0.03]
[1753125467943,68.66862354,195.27,195.26,0.03]
[1753125468650,72.67870298,195.27,195.26,0.03]
[1753125473358,72.67870298,195.27,195.24,0.03]
[1753125473574,72.67870298,195.27,195.2,0.03]
[1753125473575,16.78468397,195.22,195.2,0.03]
[1753125473776,149.18320989,195.23,195.2,0.03]
[1753125473777,303.08320989,195.21,195.2,0.03]
[1753125473962,16.78468397,195.2,195.17,0.2]
[1753125474280,53.60468397,195.19,195.18,0.03]
[1753125474451,54.29468397,195.19,195.18,0.03]
[1753125474655,59.41789724,195.19,195.18,0.03]
[1753125475252,59.41789724,195.19,195.17,0.2]
[1753125475253,66.0221602,195.19,195.17,0.2]
[1753125475477,24.07894693,195.18,195.17,0.2]
[1753125475678,29.44820437,195.18,195.17,0.2]
[1753125477062,29.20242269,195.18,195.14,0.2]
[1753125477271,16.78468397,195.16,195.14,0.2]
[1753125477467,43.42426296,195.15,195.14,0.2]
[1753125477672,44.11426296,195.15,195.14,0.2]
[1753125478179,60.89894693,195.15,195.14,0.2]
[1753125478488,60.89894693,195.15,195.1,0.2]
[1753125478489,29.99320989,195.11,195.1,0.2]
[1753125478681,66.81320989,195.11,195.1,0.2]
[1753125478865,72.87246733,195.11,195.1,0.2]
[1753125479065,72.87246733,195.11,195.06,0.2]
[1753125479066,16.78468397,195.1,195.06,0.2]
[1753125479269,23.38894693,195.07,195.06,0.2]
[1753125479586,65.57820437,195.07,195.06,0.2]
[1753125479768,66.26820437,195.07,195.06,1e-08]
[1753125479965,16.78468397,195.06,195.01,0.03]
[1753125480162,6.60426296,195.02,195.01,0.03]
[1753125480393,66.81320989,195.02,195.01,0.03]
[1753125480687,23.38894693,195.02,195.01,0.03]
[1753125480866,60.22894693,195.02,195.01,0.03]
[1753125481189,66.03662614,195.02,195.01,0.03]
[1753125481758,43.44426296,195.02,195.01,0.03]
[1753125481972,6.60426296,195.05,195.01,0.71]
[1753125482177,36.9,195.06,195.03,6.455]
[1753125482377,36.9,195.06,195.04,0.68]
[1753125482583,36.9,195.06,195.05,0.68]
[1753125484386,36.9,195.1,195.05,11.27479297]
[1753125484567,36.92,195.11,195.06,0.68]
[1753125484775,47.51479297,195.11,195.06,0.68]
[1753125485174,47.51479297,195.11,195.06,5.80648121]
[1753125485375,36.92,195.11,195.07,0.68]
[1753125485676,16.78468397,195.14,195.09,10.59479297]
[1753125485677,36.92,195.14,195.09,10.59479297]
[1753125485987,2.56461448,195.17,195.13,26.0]
[1753125486178,36.94,195.17,195.14,0.68]
[1753125486371,10.59479297,195.15,195.12,1.5152]
[1753125486692,47.53479297,195.15,195.12,2.1952]
[1753125487387,47.53479297,195.15,195.12,1.5152]
[1753125487683,47.53479297,195.15,195.13,26.68]
[1753125487872,36.94,195.15,195.13,26.68]
[1753125488265,36.94,195.15,195.14,0.68]
[1753125490307,25.70786197,195.26,195.14,0.68]
[1753125490308,10.59479297,195.2,195.14,11.27479297]
[1753125490472,36.9,195.19,195.15,11.27479297]